fUST/lending_fUST_20251021
["ID","MTS","AMOUNT","RATE_DAILY","PERIOD"]
[391932195,1761004242115,-151.0,0.000264,16]
[391932196,1761004242124,-775.0,0.00026443,2]
[391932197,1761004242133,-500.0,0.00026443,2]
[391932198,1761004242142,-2594.543043,0.0002646,2]
[391932200,1761004242152,-151.0,0.0002646,7]
[391932202,1761004242161,-151.0,0.0002646,7]
[391932204,1761004242171,-151.0,0.0002646,7]
[391932206,1761004242180,-151.0,0.0002646,7]
[391932208,1761004242189,-151.0,0.0002646,7]
[391932210,1761004242199,-174.098876,0.0002646,7]
[391932212,1761004242208,-174.098876,0.0002646,7]
[391932214,1761004242217,-174.098876,0.0002646,7]
[391932216,1761004242227,-174.098869,0.0002646,7]
[391932218,1761004242236,-642.856314,0.0002646,7]
[391932220,1761004242245,-642.856314,0.0002646,7]
[391932222,1761004242255,-642.856314,0.0002646,7]
[391932224,1761004242264,-642.856317,0.0002646,7]
[391932226,1761004242278,-892.0,0.0002646,2]
[391932228,1761004242287,-775.0,0.00026498,2]
[391932230,1761004242297,-500.0,0.00026498,2]
[391932232,1761004242306,-151.0,0.000265,13]
[391932234,1761004242317,-500.26549386,0.00026521,2]
[391932236,1761004242326,-1000.0,0.00026521,2]
[391932238,1761004242335,-1000.0,0.00026521,2]
[391932240,1761004242344,-614.73920808,0.00026521,2]
[391932242,1761004242355,-1000.0,0.00026521,2]
[391932244,1761004242364,-1000.0,0.00026521,2]
[391932246,1761004242373,-817.06638849,0.00026532,2]
[391932247,1761004242382,-500.0,0.00026537,2]
[391932250,1761004242391,-553.64373807,0.00026549,2]
[391932251,1761004242400,-775.0,0.00026553,2]
[391932253,1761004242409,-500.0,0.00026553,2]
[391932255,1761004242419,-175.933912,0.0002657,7]
[391932257,1761004242429,-151.0,0.000266,18]
[391932259,1761004242438,-775.0,0.00026608,2]
[391932261,1761004242447,-500.0,0.00026608,2]
[391932263,1761004242457,-1000.0,0.00026621,2]
[391932265,1761004242466,-514.52470429,0.00026621,2]
[391932267,1761004242476,-1000.0,0.00026621,2]
[391932269,1761004242485,-1000.0,0.00026621,2]
[391932271,1761004242494,-1000.0,0.00026621,2]
[391932273,1761004242503,-500.0,0.00026621,2]
[391932275,1761004242512,-1000.0,0.00026621,2]
[391932277,1761004242521,-151.0,0.00026624,7]
[391932279,1761004242531,-151.0,0.00026624,7]
[391932281,1761004242540,-151.0,0.00026624,7]
[391932283,1761004242551,-892.0,0.00026634,2]
[391932285,1761004242560,-151.0,0.00026634,7]
[391932287,1761004242569,-151.0,0.00026634,7]
[391932289,1761004242578,-195.017758,0.00026634,7]
[391932291,1761004242587,-151.0,0.00026634,7]
[391932293,1761004242596,-195.017758,0.00026634,7]
[391932295,1761004242606,-195.017758,0.00026634,7]
[391932297,1761004242615,-195.017758,0.00026634,7]
[391932299,1761004242624,-151.0,0.00026634,7]
[391932301,1761004242633,-151.0,0.00026634,7]
[391932303,1761004242643,-151.0,0.00026634,7]
[391932305,1761004242652,-151.0,0.00026634,7]
[391932307,1761004242661,-151.0,0.00026634,7]
[391932309,1761004242671,-151.0,0.00026634,7]
[391932311,1761004242680,-775.0,0.00026663,2]
[391932313,1761004242690,-500.0,0.00026663,2]
[391932315,1761004242699,-714.041679,0.00026676,2]
[391932317,1761004242709,-668.67729493,0.00026701,2]
[391932319,1761004242718,-775.0,0.00026717,2]
[391932321,1761004242727,-500.0,0.00026717,2]
[391932323,1761004242736,-591.8798605,0.00026721,2]
[391932325,1761004242745,-489.32530999,0.00026721,2]
[391932327,1761004242754,-1000.0,0.00026721,2]
[391932329,1761004242763,-500.0,0.00026721,2]
[391932331,1761004242773,-185.21247534,0.00026721,2]
[391932334,1761004242783,-984.17541492,0.00026746,2]
[391932336,1761004242794,-260.0,0.00026756,2]
[391932337,1761004242804,-775.0,0.00026772,2]
[391932339,1761004242814,-500.0,0.00026772,2]
[391932342,1761004242823,-892.0,0.00026824,7]
[391932343,1761004242834,-775.0,0.00026827,2]
[391932345,1761004242844,-500.0,0.00026827,2]
[391932347,1761004242853,-892.0,0.00026842,2]
[391932349,1761004242862,-151.0,0.00026842,7]
[391932352,1761004242874,-151.0,0.00026842,7]
[391932355,1761004242883,-300.0,0.00026852,30]
[391932358,1761004242893,-300.0,0.00026852,30]
[391932361,1761004242903,-300.0,0.00026852,30]
[391932364,1761004242914,-300.0,0.00026852,30]
[391932366,1761004242923,-300.0,0.00026852,30]
[391932368,1761004242934,-300.0,0.00026852,30]
[391932370,1761004242944,-300.0,0.00026852,30]
[391932371,1761004242954,-300.0,0.00026852,30]
[391932373,1761004242964,-300.0,0.00026852,30]
[391932375,1761004242974,-300.0,0.00026852,30]
[391932377,1761004242984,-300.0,0.00026852,30]
[391932379,1761004242994,-300.0,0.00026852,30]
[391932382,1761004243004,-300.0,0.00026852,30]
[391932384,1761004243014,-300.0,0.00026852,30]
[391932385,1761004243024,-300.0,0.00026852,30]
[391932388,1761004243034,-600.0,0.00026862,30]
[391932389,1761004243044,-775.0,0.00026882,2]
[391932392,1761004243054,-500.0,0.00026882,2]
[391932394,1761004243064,-151.0,0.00026912,7]
[391932395,1761004243073,-151.0,0.00026912,7]
[391932398,1761004243083,-775.0,0.00026937,2]
[391932399,1761004243093,-335.0,0.00026937,2]
[391932401,1761004243102,-892.0,0.00026945,2]
[391932403,1761004243113,-151.0,0.00026984,7]
[391932406,1761004243122,-151.0,0.00026987,7]
[391932407,1761004243131,-151.0,0.00026987,7]
[391932410,1761004243141,-195.017758,0.00026987,7]
[391932412,1761004243152,-166.222641,0.00026987,7]
[391932414,1761004243161,-195.017758,0.00026987,7]
[391932416,1761004243169,-195.017758,0.00026987,7]
[391932418,1761004243178,-195.017758,0.00026987,7]
[391932420,1761004243187,-151.0,0.00026987,7]
[391932422,1761004243197,-151.0,0.00026987,7]
[391932423,1761004243206,-151.0,0.00026987,7]
[391932425,1761004243217,-151.0,0.00026987,7]
[391932428,1761004243227,-151.0,0.00026987,7]
[391932429,1761004243238,-151.0,0.00026987,7]
[391932431,1761004243248,-775.0,0.00026991,2]
[391932433,1761004243258,-402.9601108,0.00027,3]
[391932435,1761004243266,-3418.1245584,0.00027,5]
[391932437,1761004243280,-420.782155,0.00027,2]
[391932439,1761004243289,-275.351617,0.00027,2]
[391932441,1761004243299,-14065.15109113,0.00027,3]
[391932443,1761004243307,-892.0,0.00027014,2]
[391932445,1761004243316,-892.0,0.00027027,2]
[391932447,1761004243327,-892.0,0.0002704,2]
[391932449,1761004243335,-775.0,0.00027046,2]
[391932451,1761004243344,-1452.56246843,0.00027052,2]
[391932453,1761004243356,-1500.0,0.00027068,2]
[391932455,1761004243366,-1500.0,0.00027068,2]
[391932457,1761004243375,-1500.0,0.00027068,2]
[391932460,1761004243386,-1024.87285329,0.00027068,2]
[391932461,1761004243396,-574.12855637,0.00027097,2]
[391932463,1761004243408,-14065.09,0.000271,3]
[391932465,1761004243417,-775.0,0.00027101,2]
[391932467,1761004243427,-188.39295201,0.00027114,2]
[391932469,1761004243437,-6978.23601546,0.00027122,2]
[391932471,1761004243447,-151.0,0.00027123,7]
[391932474,1761004243456,-1007.7938946,0.00027123,3]
[391932476,1761004243465,-151.0,0.00027128,7]
[391932477,1761004243474,-775.0,0.00027156,2]
[391932480,1761004243484,-1500.0,0.00027168,2]
[391932481,1761004243493,-1500.0,0.00027168,2]
[391932484,1761004243502,-1015.02448864,0.00027168,2]
[391932485,1761004243511,-290.63311626,0.00027168,2]
[391932487,1761004243520,-1500.0,0.00027168,2]
[391932490,1761004243530,-168.0,0.00027185,2]
[391932491,1761004243539,-775.0,0.0002721,2]
[391932494,1761004243548,-800.0,0.00027228,2]
[391932495,1761004243558,-168.0,0.00027231,2]
[391932498,1761004243567,-800.0,0.00027236,2]
[391932500,1761004243576,-800.0,0.00027236,2]
[391932502,1761004243586,-800.0,0.00027252,2]
[391932503,1761004243595,-788.79249431,0.00027265,2]
[391932506,1761004243604,-151.0,0.00027268,7]
[391932508,1761004243614,-151.0,0.00027268,7]
[391932510,1761004243623,-195.017758,0.00027268,7]
[391932512,1761004243632,-195.017758,0.00027268,7]
[391932514,1761004243641,-195.017758,0.00027268,7]
[391932516,1761004243651,-195.017748,0.00027268,7]
[391932518,1761004243660,-151.0,0.00027268,7]
[391932519,1761004243669,-151.0,0.00027268,7]
[391932522,1761004243679,-151.0,0.00027268,7]
[391932523,1761004243687,-151.0,0.00027268,7]
[391932525,1761004243697,-151.0,0.00027268,7]
[391932527,1761004243707,-151.0,0.00027268,7]
[391932530,1761004243718,-1500.0,0.00027268,2]
[391932532,1761004243728,-160.0,0.00027269,2]
[391932533,1761004243738,-402.9601108,0.00027269,2]
[391932535,1761004243747,-160.0,0.00027269,2]
[391932538,1761004243758,-160.0,0.00027269,2]
[391932539,1761004243767,-402.9601108,0.00027269,2]
[391932542,1761004243776,-731.36579133,0.00027301,2]
[391932544,1761004243786,-800.0,0.00027304,2]
[391932545,1761004243795,-360.0,0.00027304,2]
[391932547,1761004243805,-800.0,0.00027318,2]
[391932549,1761004243815,-800.0,0.00027321,2]
[391932552,1761004243825,-800.0,0.00027328,2]
[391932553,1761004243834,-800.0,0.00027336,2]
[391932556,1761004243844,-1379.6,0.0002734,3]
[391932557,1761004243853,-689.8,0.0002734,3]
[391932559,1761004243862,-344.9,0.0002734,3]
[391932561,1761004243871,-827.82433594,0.00027345,2]
[391932563,1761004243880,-2759.22,0.0002735,3]
[391932565,1761004243889,-800.0,0.0002737,2]
[391932567,1761004243897,-500.0,0.00027373,2]
[391932569,1761004243906,-500.0,0.00027373,2]
[391932571,1761004243915,-570.82366199,0.00027373,2]
[391932573,1761004243925,-520.34331837,0.00027373,2]
[391932575,1761004243934,-500.0,0.00027373,2]
[391932577,1761004243943,-500.0,0.00027373,2]
[391932579,1761004243952,-150.0,0.00027373,2]
[391932581,1761004243961,-150.0,0.00027373,2]
[391932583,1761004243971,-150.0,0.00027373,2]
[391932585,1761004243980,-800.0,0.00027392,2]
[391932587,1761004243989,-800.0,0.00027393,2]
[391932589,1761004243998,-155.0,0.00027396,2]
[391932591,1761004244007,-151.0,0.00027397,7]
[391932593,1761004244016,-1187.75,0.00027397,2]
[391932595,1761004244026,-1187.75,0.00027397,2]
[391932597,1761004244035,-1187.75,0.00027397,2]
[391932599,1761004244044,-1187.75,0.00027397,2]
[391932601,1761004244054,-1187.75,0.00027397,2]
[391932603,1761004244063,-1187.75,0.00027397,2]
[391932605,1761004244072,-1187.75,0.00027397,2]
[391932607,1761004244081,-1187.75,0.00027397,2]
[391932609,1761004244090,-1187.75,0.00027397,2]
[391932611,1761004244099,-1187.75,0.00027397,2]
[391932613,1761004244109,-1187.75,0.00027397,2]
[391932615,1761004244118,-1187.75,0.00027397,2]
[391932617,1761004244127,-1187.75,0.00027397,2]
[391932619,1761004244136,-1187.75,0.00027397,2]
[391932621,1761004244145,-1187.75,0.00027397,2]
[391932623,1761004244154,-1187.75,0.00027397,2]
[391932625,1761004244163,-1187.75,0.00027397,2]
[391932627,1761004244172,-1187.75,0.00027397,2]
[391932629,1761004244181,-1187.75,0.00027397,2]
[391932631,1761004244190,-1187.75,0.00027397,2]
[391932633,1761004244198,-1187.75,0.00027397,2]
[391932635,1761004244208,-1187.75,0.00027397,2]
[391932637,1761004244217,-1187.75,0.00027397,2]
[391932639,1761004244226,-1187.96021411,0.00027397,2]
[391932641,1761004244235,-557.84,0.00027397,2]
[391932643,1761004244245,-557.84,0.00027397,2]
[391932645,1761004244255,-557.84,0.00027397,2]
[391932647,1761004244265,-557.84,0.00027397,2]
[391932649,1761004244278,-557.84,0.00027397,2]
[391932651,1761004244288,-557.84,0.00027397,2]
[391932653,1761004244297,-557.84,0.00027397,2]
[391932655,1761004244306,-557.84,0.00027397,2]
[391932657,1761004244315,-557.84,0.00027397,2]
[391932659,1761004244326,-557.84,0.00027397,2]
[391932661,1761004244336,-557.84,0.00027397,2]
[391932663,1761004244346,-557.84,0.00027397,2]
[391932665,1761004244355,-557.84,0.00027397,2]
[391932667,1761004244365,-557.84,0.00027397,2]
[391932669,1761004244375,-557.84,0.00027397,2]
[391932671,1761004244384,-557.84,0.00027397,2]
[391932673,1761004244393,-557.84,0.00027397,2]
[391932675,1761004244402,-557.84,0.00027397,2]
[391932677,1761004244411,-557.84,0.00027397,2]
[391932679,1761004244420,-557.84,0.00027397,2]
[391932681,1761004244429,-557.84,0.00027397,2]
[391932683,1761004244438,-557.84,0.00027397,2]
[391932685,1761004244448,-557.84,0.00027397,2]
[391932687,1761004244457,-557.99501602,0.00027397,2]
[391932689,1761004244467,-1000.0,0.00027397,2]
[391932691,1761004244476,-1000.0,0.00027397,2]
[391932693,1761004244484,-1000.0,0.00027397,2]
[391932695,1761004244494,-1000.0,0.00027397,2]
[391932697,1761004244502,-1000.0,0.00027397,2]
[391932699,1761004244511,-1000.0,0.00027397,2]
[391932701,1761004244520,-1000.0,0.00027397,2]
[391932702,1761004244529,-1000.0,0.00027397,2]
[391932704,1761004244538,-1000.0,0.00027397,2]
[391932706,1761004244548,-1000.0,0.00027397,2]
[391932708,1761004244557,-1000.0,0.00027397,2]
[391932710,1761004244566,-1000.0,0.00027397,2]
[391932712,1761004244575,-1000.0,0.00027397,2]
[391932714,1761004244584,-1000.0,0.00027397,2]
[391932716,1761004244593,-859.93312633,0.00027397,2]
[391932718,1761004244604,-1000.0,0.00027397,2]
[391932720,1761004244613,-561.13232975,0.00027397,2]
[391932722,1761004244621,-1500.0,0.00027397,30]
[391932724,1761004244630,-1500.0,0.00027397,28]
[391932726,1761004244639,-1500.0,0.00027397,28]
[391932728,1761004244648,-1500.0,0.00027397,28]
[391932730,1761004244657,-1500.0,0.00027397,28]
[391932732,1761004244666,-1500.0,0.00027397,28]
[391932734,1761004244675,-1500.0,0.00027397,28]
[391932736,1761004244684,-1500.0,0.00027397,28]
[391932738,1761004244694,-1500.0,0.00027397,28]
[391932740,1761004244702,-1500.0,0.00027397,28]
[391932742,1761004244711,-1500.0,0.00027397,28]
[391932744,1761004244720,-1500.0,0.00027397,28]
[391932746,1761004244729,-1500.0,0.00027397,28]
[391932748,1761004244738,-1500.0,0.00027397,28]
[391932750,1761004244747,-851.755767,0.00027397,28]
[391932752,1761004244757,-1000.0,0.00027397,2]
[391932754,1761004244766,-1000.0,0.00027397,2]
[391932756,1761004244775,-1000.0,0.00027397,2]
[391932758,1761004244786,-1000.0,0.00027397,2]
[391932760,1761004244795,-1000.0,0.00027397,2]
[391932762,1761004244805,-1000.0,0.00027397,2]
[391932764,1761004244815,-1000.0,0.00027397,2]
[391932766,1761004244824,-1000.0,0.00027397,2]
[391932768,1761004244833,-1000.0,0.00027397,2]
[391932770,1761004244842,-1000.0,0.00027397,2]
[391932772,1761004244851,-1000.0,0.00027397,2]
[391932774,1761004244860,-1000.0,0.00027397,2]
[391932776,1761004244870,-1000.0,0.00027397,2]
[391932778,1761004244879,-1000.0,0.00027397,2]
[391932780,1761004244889,-1000.0,0.00027397,2]
[391932782,1761004244898,-1000.0,0.00027397,2]
[391932784,1761004244908,-232.36513678,0.00027397,2]
[391932786,1761004244917,-2945.44,0.00027397,2]
[391932788,1761004244927,-2945.44,0.00027397,2]
[391932790,1761004244936,-2945.44,0.00027397,2]
[391932792,1761004244945,-2945.44,0.00027397,2]
[391932794,1761004244954,-2945.44,0.00027397,2]
[391932796,1761004244964,-2945.44,0.00027397,2]
[391932798,1761004244973,-2945.44,0.00027397,2]
[391932800,1761004244983,-2945.44,0.00027397,2]
[391932802,1761004244992,-2945.44,0.00027397,2]
[391932804,1761004245001,-2945.44,0.00027397,2]
[391932806,1761004245010,-2945.44,0.00027397,2]
[391932808,1761004245019,-2945.44,0.00027397,2]
[391932810,1761004245028,-2945.44,0.00027397,2]
[391932812,1761004245037,-2945.44,0.00027397,2]
[391932814,1761004245046,-2945.44,0.00027397,2]
[391932816,1761004245056,-2945.44,0.00027397,2]
[391932824,1761004245236,-2945.44,0.00027397,2]
[391932825,1761004245246,-2945.44,0.00027397,2]
[391932827,1761004245255,-2945.44,0.00027397,2]
[391932829,1761004245265,-2945.44,0.00027397,2]
[391932831,1761004245277,-2945.44,0.00027397,2]
[391932833,1761004245286,-2945.44,0.00027397,2]
[391932835,1761004245295,-2945.44,0.00027397,2]
[391932837,1761004245304,-2945.51351934,0.00027397,2]
[391932839,1761004245314,-500.0,0.00027397,2]
[391932841,1761004245324,-500.0,0.00027397,2]
[391932843,1761004245333,-151.0,0.00027397,30]
[391932845,1761004245342,-152.322127,0.00027397,30]
[391932847,1761004245351,-154.08754,0.00027397,30]
[391932849,1761004245361,-154.08754,0.00027397,30]
[391932851,1761004245370,-154.08754,0.00027397,30]
[391932853,1761004245380,-154.08754,0.00027397,30]
[391932855,1761004245390,-154.08754,0.00027397,30]
[391932857,1761004245400,-154.08754,0.00027397,30]
[391932859,1761004245409,-154.08754,0.00027397,30]
[391932861,1761004245418,-154.08754,0.00027397,30]
[391932863,1761004245427,-154.08754,0.00027397,30]
[391932865,1761004245436,-154.08754,0.00027397,30]
[391932867,1761004245446,-154.08754,0.00027397,30]
[391932869,1761004245455,-154.08754,0.00027397,30]
[391932871,1761004245464,-154.08754,0.00027397,30]
[391932873,1761004245473,-154.08754,0.00027397,30]
[391932875,1761004245484,-154.08754,0.00027397,30]
[391932877,1761004245493,-154.08754,0.00027397,30]
[391932879,1761004245503,-154.08754,0.00027397,30]
[391932881,1761004245512,-154.08754,0.00027397,30]
[391932883,1761004245521,-154.08754,0.00027397,30]
[391932885,1761004245530,-154.087531,0.00027397,30]
[391932887,1761004245540,-151.782599,0.00027397,30]
[391932889,1761004245549,-800.0,0.00027414,2]
[391932892,1761004245560,-800.0,0.00027415,2]
[391932894,1761004245570,-800.0,0.00027429,2]
[391932895,1761004245579,-1747.8955369,0.00027436,2]
[391932898,1761004245589,-800.0,0.00027437,2]
[391932900,1761004245599,-800.0,0.00027483,2]
[391932902,1761004245609,-800.0,0.00027487,2]
[391932904,1761004245619,-800.0,0.00027489,2]
[391932905,1761004245628,-800.0,0.00027489,2]
[391932908,1761004245637,-3458.74,0.000275,2]
[391932909,1761004245646,-13543.35366489,0.000275,2]
[391932912,1761004245655,-4204.0,0.00027502,2]
[391932914,1761004245665,-999.443,0.00027502,2]
[391932915,1761004245675,-632.0,0.00027502,2]
[391932918,1761004245684,-2163.0,0.00027502,2]
[391932920,1761004245693,-2267.35922806,0.00027571,2]
[391932921,1761004245702,-420.0,0.0002761,2]
[391932924,1761004245712,-2000.0,0.00027616,5]
[391932925,1761004245722,-2000.0,0.00027616,5]
[391932928,1761004245731,-2000.0,0.00027616,5]
[391932930,1761004245742,-595.37131296,0.00027645,2]
[391932932,1761004245751,-168.0,0.00027656,2]
[391932934,1761004245759,-150.269,0.0002767,2]
[391932936,1761004245768,-292.404,0.0002767,2]
[391932938,1761004245778,-151.499,0.0002767,2]
[391932940,1761004245790,-262.513,0.0002767,2]
[391932942,1761004245799,-294.101,0.0002767,2]
[391932944,1761004245809,-150.07,0.0002767,2]
[391932946,1761004245819,-1500.0,0.00027671,30]
[391932948,1761004245828,-446.45912168,0.00027716,5]
[391932950,1761004245837,-2000.0,0.00027716,5]
[391932952,1761004245846,-2000.0,0.00027716,5]
[391932954,1761004245856,-172.947244,0.00027741,2]
[391932956,1761004245866,-3606.37120839,0.000278,2]
[391932958,1761004245875,-1007.2367903,0.00027816,5]
[391932960,1761004245884,-460.0,0.00027852,2]
[391932962,1761004245893,-17705.83746014,0.0002787,7]
[391932964,1761004245902,-794.05428773,0.00027901,2]
[391932966,1761004245911,-1110.37696371,0.00027921,2]
[391932967,1761004245920,-502.13746908,0.00027921,5]
[391932969,1761004245930,-1000.0,0.00027921,5]
[391932971,1761004245939,-500.0,0.00027921,4]
[391932973,1761004245948,-300.0,0.00027921,5]
[391932975,1761004245957,-250.0,0.00027921,5]
[391932977,1761004245967,-250.0,0.00027921,5]
[391932979,1761004245976,-527.013,0.00027935,18]
[391932981,1761004245986,-1067.03131726,0.00027945,30]
[391932983,1761004245995,-402.9601108,0.00028,7]
[391932985,1761004246005,-4949.0,0.00028085,7]
[391932987,1761004246015,-4949.0,0.00028124,2]
[391932989,1761004246024,-1500.0,0.00028164,5]
[391932991,1761004246033,-2500.0,0.00028164,5]
[391932994,1761004246044,-527.64625486,0.00028164,5]
[391932995,1761004246053,-617.40005154,0.00028193,2]
[391932997,1761004246063,-402.9601108,0.000282,30]
[391932999,1761004246072,-5000.0,0.00028212,2]
[391933002,1761004246082,-16244.2852889,0.00028233,2]
[391933004,1761004246093,-168.0,0.0002826,2]
[391933005,1761004246103,-2515.50384054,0.00028264,5]
[391933007,1761004246113,-2500.0,0.00028264,5]
[391933009,1761004246122,-6978.23601546,0.00028318,2]
[391933011,1761004246132,-168.0,0.00028374,7]
[391933013,1761004246141,-560.0,0.00028399,2]
[391933015,1761004246150,-153.0,0.00028402,2]
[391933017,1761004246160,-153.0,0.00028402,2]
[391933019,1761004246169,-153.0,0.00028402,2]
[391933021,1761004246178,-153.0,0.00028402,2]
[391933023,1761004246187,-153.0,0.00028402,2]
[391933025,1761004246196,-153.0,0.00028402,2]
[391933027,1761004246205,-153.0,0.00028402,2]
[391933029,1761004246215,-153.0,0.00028402,2]
[391933031,1761004246223,-153.0,0.00028402,2]
[391933033,1761004246233,-153.0,0.00028402,2]
[391933035,1761004246242,-153.0,0.00028402,2]
[391933037,1761004246251,-153.0,0.00028402,2]
[391933039,1761004246260,-153.0,0.00028402,2]
[391933041,1761004246269,-6495.08139675,0.00028448,2]
[391933043,1761004246283,-1500.0,0.00028468,5]
[391933045,1761004246292,-450.0,0.00028468,5]
[391933047,1761004246301,-350.0,0.00028468,5]
[391933049,1761004246311,-389.82742202,0.00028468,5]
[391933051,1761004246322,-10928.28678764,0.000285,7]
[391933085,1761004246635,-128478.99053232,0.000285,7]
[391933087,1761004246644,-18607.62,0.000285,7]
[391933089,1761004246653,-856.74278413,0.00028501,2]
[391933091,1761004246663,-153.0,0.00028522,2]
[391933093,1761004246672,-153.0,0.00028522,2]
[391933095,1761004246681,-153.0,0.00028522,2]
[391933097,1761004246690,-331.0,0.00028548,29]
[391933099,1761004246700,-3458.74,0.000286,2]
[391933101,1761004246709,-168.0,0.0002864,2]
[391933103,1761004246718,-172.612861,0.00028665,10]
[391933105,1761004246728,-3000.0,0.00028712,5]
[391933107,1761004246737,-168.0,0.00028731,2]
[391933109,1761004246747,-640.24385345,0.00028741,2]
[391933111,1761004246756,-989.59810801,0.0002876,2]
[391933113,1761004246765,-4000.0,0.0002876,5]
[391933115,1761004246775,-2318.4149331,0.0002876,2]
[391933117,1761004246784,-250.31971598,0.0002876,2]
[391933119,1761004246793,-169.83253239,0.000288,7]
[391933122,1761004246803,-3000.0,0.00028812,5]
[391933124,1761004246812,-660.0,0.00028947,2]
[391933126,1761004246821,-168.0,0.00028963,7]
[391933128,1761004246831,-179.67658215,0.00028964,2]
[391933130,1761004246842,-881.98862225,0.00029,2]
[391933132,1761004246852,-1169.01441972,0.00029,2]
[391933134,1761004246862,-502.44369659,0.00029,7]
[391933135,1761004246871,-762.0,0.00029,2]
[391933137,1761004246879,-2020.68978413,0.00029016,5]
[391933139,1761004246889,-600.0,0.00029016,5]
[391933141,1761004246898,-450.0,0.00029016,5]
[391933143,1761004246908,-172.947244,0.00029021,2]
[391933145,1761004246917,-420.782155,0.00029023,2]
[391933147,1761004246927,-275.351617,0.00029023,2]
[391933149,1761004246936,-168.0,0.00029026,7]
[391933151,1761004246946,-1305.3770172,0.00029054,2]
[391933154,1761004246956,-919.43128052,0.00029101,2]
[391933156,1761004246965,-500.0,0.0002913,5]
[391933158,1761004246974,-500.0,0.0002913,20]
[391933160,1761004246984,-500.0,0.0002913,5]
[391933162,1761004246994,-500.0,0.0002913,20]
[391933164,1761004247005,-500.0,0.0002913,5]
[391933166,1761004247014,-500.0,0.0002913,5]
[391933168,1761004247023,-378.3000009,0.0002913,20]
[391933170,1761004247033,-500.0,0.0002913,5]
[391933172,1761004247043,-500.0,0.0002913,20]
[391933174,1761004247053,-3500.0,0.0002926,5]
[391933176,1761004247065,-663.93287602,0.00029289,2]
[391933178,1761004247074,-3500.0,0.0002936,5]
[391933180,1761004247083,-2020.24908728,0.0002939,5]
[391933182,1761004247092,-760.0,0.00029495,2]
[391933184,1761004247102,-18607.62,0.000295,7]
[391933186,1761004247112,-6978.23601546,0.00029513,2]
[391933188,1761004247122,-32361.79220841,0.00029539,2]
[391933287,1761004248677,-302.0,0.0002599,7]
[391933290,1761004248688,-235.126885,0.0002599,7]
[391933291,1761004248699,-537.126885,0.0002599,7]
[391933292,1761004248708,-537.126885,0.00025997,7]
[391933293,1761004248718,-537.126885,0.00025997,7]
[391933294,1761004248727,-537.126885,0.00026007,7]
[391933295,1761004248737,-537.126885,0.00026007,7]
[391933296,1761004248747,-537.126885,0.00026016,7]
[391933297,1761004248756,-537.126885,0.00026016,7]
[391933298,1761004248765,-537.126885,0.00026106,7]
[391933299,1761004248775,-537.126888,0.00026106,7]
[391933300,1761004248784,-388.26,0.00027397,2]
[391933301,1761004248793,-869.58129894,0.00029,2]
[391933311,1761004249138,-166.01870106,0.00029,2]
[391933312,1761004249148,-1035.6,0.00029174,2]
[391933313,1761004249157,-1035.6,0.00029348,2]
[391933314,1761004249166,-163.26172939,0.00029522,2]
[391933315,1761004589595,1555.36781747,0.00021,10]
[391933316,1761004589619,1444.63218253,0.00021,10]
[391933317,1761005017407,502.96,0.00030137,120]
[391933318,1761005049165,1469.36,0.00030137,120]